fUST/lending_fUST_20250528
["ID","MTS","AMOUNT","RATE_DAILY","PERIOD"]
[362665404,1748389849799,-3316.6,0.00022,2]
[362665406,1748389849808,-151.0,0.00022,7]
[362665408,1748389849818,-151.0,0.00022,7]
[362665410,1748389849827,-151.0,0.00022,7]
[362665412,1748389849837,-500.0,0.000221,2]
[362665414,1748389849846,-500.0,0.000221,2]
[362665416,1748389849856,-500.0,0.000221,2]
[362665418,1748389849865,-600.0,0.000221,2]
[362665420,1748389849876,-500.0,0.000221,2]
[362665422,1748389849886,-430.0,0.00022191,2]
[362665424,1748389849896,-430.0,0.00022191,2]
[362665426,1748389849905,-430.0,0.00022191,2]
[362665428,1748389849915,-430.0,0.00022191,2]
[362665430,1748389849924,-430.0,0.00022191,2]
[362665432,1748389849933,-200.0,0.00022191,2]
[362665434,1748389849942,-200.0,0.00022191,2]
[362665436,1748389849952,-200.0,0.00022191,2]
[362665438,1748389849961,-200.0,0.00022191,2]
[362665440,1748389849971,-200.0,0.00022191,2]
[362665442,1748389849980,-200.0,0.00022191,2]
[362665444,1748389849989,-200.0,0.00022191,2]
[362665446,1748389850000,-200.0,0.00022191,2]
[362665448,1748389850009,-200.0,0.00022191,2]
[362665450,1748389850019,-200.0,0.00022191,2]
[362665452,1748389850028,-191.50249476,0.00022191,2]
[362665454,1748389850037,-430.0,0.00022191,2]
[362665456,1748389850047,-932.7,0.00022191,2]
[362665458,1748389850056,-884.71,0.00022191,2]
[362665460,1748389850065,-224.7643019,0.00022191,2]
[362665462,1748389850075,-430.0,0.00022191,2]
[362665464,1748389850085,-430.0,0.00022191,2]
[362665466,1748389850094,-430.0,0.00022191,2]
[362665468,1748389850103,-886.17,0.00022191,2]
[362665470,1748389850113,-430.0,0.00022191,2]
[362665472,1748389850122,-512.57,0.00022191,2]
[362665474,1748389850131,-430.0,0.00022191,2]
[362665475,1748389850140,-430.0,0.00022191,2]
[362665477,1748389850150,-430.0,0.00022191,2]
[362665479,1748389850160,-430.0,0.00022191,2]
[362665481,1748389850169,-430.0,0.00022191,2]
[362665483,1748389850179,-430.0,0.00022191,2]
[362665485,1748389850189,-430.0,0.00022191,2]
[362665487,1748389850199,-430.0,0.00022191,2]
[362665489,1748389850209,-430.0,0.00022191,2]
[362665491,1748389850218,-430.0,0.00022235,2]
[362665493,1748389850228,-582.73,0.00022235,2]
[362665495,1748389850236,-430.0,0.00022235,2]
[362665497,1748389850246,-500.0,0.0002226,2]
[362665499,1748389850254,-1269.98,0.000223,2]
[362665501,1748389850264,-1759.78007751,0.00022391,2]
[362665502,1748389850274,-226.06,0.00022465,2]
[362665504,1748389850283,-430.0,0.00022465,2]
[362665506,1748389850293,-430.0,0.00022465,2]
[362665508,1748389850302,-430.0,0.00022465,2]
[362665510,1748389850312,-430.0,0.00022465,2]
[362665512,1748389850321,-430.0,0.00022465,2]
[362665514,1748389850331,-932.7,0.00022465,2]
[362665516,1748389850340,-884.71,0.00022465,2]
[362665518,1748389850350,-498.96,0.00022465,2]
[362665520,1748389850359,-430.0,0.00022465,2]
[362665522,1748389850369,-430.0,0.00022465,2]
[362665524,1748389850378,-886.17,0.00022465,2]
[362665526,1748389850387,-430.0,0.00022465,2]
[362665528,1748389850397,-512.57,0.00022465,2]
[362665530,1748389850406,-182.47,0.00022465,2]
[362665532,1748389850415,-430.0,0.00022465,2]
[362665534,1748389850424,-430.0,0.00022465,2]
[362665535,1748389850433,-528.45,0.00022465,2]
[362665537,1748389850443,-574.0,0.00022465,2]
[362665539,1748389850452,-430.0,0.00022465,2]
[362665541,1748389850461,-430.0,0.00022465,2]
[362665543,1748389850470,-518.9,0.00022465,2]
[362665545,1748389850480,-430.0,0.00022509,2]
[362665547,1748389850489,-582.73,0.00022509,2]
[362665549,1748389850498,-430.0,0.00022509,2]
[362665558,1748389850582,-153.64719825,0.0002253,2]
[362665560,1748389850593,-992.96291503,0.00022648,2]
[362665562,1748389850603,-1000.0,0.00022648,2]
[362665564,1748389850613,-1105.18934572,0.00022648,2]
[362665566,1748389850622,-1200.0,0.00022648,2]
[362665568,1748389850632,-1053.18874352,0.00022648,2]
[362665570,1748389850641,-495.24,0.00022739,2]
[362665572,1748389850651,-431.54,0.00022739,2]
[362665574,1748389850660,-430.0,0.00022739,2]
[362665576,1748389850670,-430.0,0.00022739,2]
[362665578,1748389850680,-430.0,0.00022739,2]
[362665580,1748389850690,-932.7,0.00022739,2]
[362665582,1748389850699,-884.71,0.00022739,2]
[362665584,1748389850708,-430.0,0.00022739,2]
[362665586,1748389850718,-430.0,0.00022739,2]
[362665588,1748389850727,-886.17,0.00022739,2]
[362665590,1748389850737,-430.0,0.00022739,2]
[362665592,1748389850746,-512.57,0.00022739,2]
[362665594,1748389850756,-430.0,0.00022739,2]
[362665596,1748389850766,-430.0,0.00022739,2]
[362665598,1748389850776,-430.0,0.00022739,2]
[362665600,1748389850785,-430.0,0.00022739,2]
[362665602,1748389850794,-430.0,0.00022783,2]
[362665604,1748389850803,-582.73,0.00022783,2]
[362665606,1748389850813,-430.0,0.00022783,2]
[362665608,1748389850822,-151.0,0.000229,7]
[362665610,1748389850831,-171.0,0.00023,7]
[362665612,1748389850841,-589.71121358,0.0002301,2]
[362665614,1748389850850,-430.0,0.00023013,2]
[362665616,1748389850859,-467.06,0.00023013,2]
[362665618,1748389850869,-932.7,0.00023013,2]
[362665620,1748389850878,-884.71,0.00023013,2]
[362665622,1748389850887,-479.0,0.00023013,2]
[362665624,1748389850897,-249.50295602,0.00023013,2]
[362665626,1748389850907,-886.17,0.00023013,2]
[362665628,1748389850916,-430.0,0.00023013,2]
[362665630,1748389850925,-512.57,0.00023013,2]
[362665632,1748389850934,-430.0,0.00023013,2]
[362665633,1748389850943,-430.0,0.00023013,2]
[362665635,1748389850953,-430.0,0.00023013,2]
[362665637,1748389850962,-569.21,0.00023013,2]
[362665639,1748389850971,-170.0,0.00023014,7]
[362665641,1748389850981,-430.0,0.00023057,2]
[362665643,1748389850991,-582.73,0.00023057,2]
[362665645,1748389851000,-430.0,0.00023057,2]
[362665648,1748389851010,-500.0,0.00023074,2]
[362665650,1748389851021,-500.0,0.00023074,2]
[362665652,1748389851030,-500.0,0.00023074,2]
[362665654,1748389851041,-500.0,0.00023074,2]
[362665656,1748389851050,-500.0,0.00023074,2]
[362665658,1748389851059,-500.59755841,0.00023074,2]
[362665660,1748389851068,-500.86147166,0.00023074,2]
[362665662,1748389851078,-500.0,0.00023074,2]
[362665664,1748389851087,-500.0,0.00023074,2]
[362665665,1748389851096,-44106.11823241,0.000231,7]
[362665686,1748389851286,-430.0,0.00019178,2]
[362665688,1748389851295,-397.86,0.00019452,2]
[362665690,1748389851305,-9711.02389035,0.000231,7]
[362665692,1748389851316,-3776.45795091,0.000231,7]
[362665694,1748389851327,-62057.33992633,0.000231,7]
[362665696,1748389851337,-19971.20853967,0.000231,2]
[362667192,1748390257229,301.534439,0.00013699,2]
[362667197,1748390552883,288.13766655,0.0002455,120]
[362667200,1748390732408,200.0,0.00024167,120]
[362667274,1748391032685,-278.77496496,0.00017899,2]
[362667277,1748391032696,-300.0,0.00017999,2]
[362667279,1748391032706,-300.0,0.00017999,2]
[362667281,1748391032716,-480.0,0.00017999,2]
[362667283,1748391032731,-1895.79917097,0.00018,2]
[362667289,1748391032782,-1343.44500342,0.00018,2]
[362667300,1748391032877,-2692.13617536,0.00018,2]
[362667718,1748391038407,-624.20491612,0.00018,2]
[362668047,1748391043428,-11471.18776214,0.00018,2]
[362668340,1748391046573,-3521.49697199,0.00018,2]
[362668342,1748391046582,-288.97521493,0.00019078,2]
[362668343,1748391046592,-160.0,0.00019148,2]
[362668346,1748391046601,-161.22226827,0.00019172,2]
[362668348,1748391046611,-201.14372197,0.00019172,2]
[362668350,1748391046620,-500.0,0.00019173,2]
[362668352,1748391046631,-500.0,0.00019173,2]
[362668354,1748391046640,-546.69472309,0.00019173,2]
[362668357,1748391046650,-33954.62601267,0.00019177,2]
[362668359,1748391046660,-160.0,0.00019177,2]
[362668360,1748391046669,-500.0,0.00019177,2]
[362668362,1748391046679,-500.0,0.00019177,2]
[362668365,1748391046689,-500.0,0.00019177,2]
[362668366,1748391046699,-407.82321737,0.00019177,2]
[362668369,1748391046709,-500.0,0.00019177,2]
[362668371,1748391046719,-192.55920072,0.00019177,2]
[362668373,1748391046729,-500.0,0.00019177,2]
[362668375,1748391046738,-500.0,0.00019177,2]
[362668377,1748391046748,-500.0,0.00019177,2]
[362668378,1748391046757,-500.0,0.00019177,2]
[362668380,1748391046767,-500.0,0.00019177,2]
[362668382,1748391046777,-500.0,0.00019177,2]
[362668384,1748391046787,-500.0,0.00019177,2]
[362668386,1748391046797,-376.9940666,0.00019177,2]
[362668389,1748391046807,-206.79581561,0.00019178,2]
[362668391,1748391046818,-371.61362936,0.00019178,2]
[362668392,1748391046828,-400.0,0.00019178,2]
[362668395,1748391046838,-430.0,0.00019178,2]
[362668396,1748391046848,-430.0,0.00019178,2]
[362668398,1748391046858,-420.0,0.00019178,2]
[362668400,1748391046868,-374.19465851,0.00019178,2]
[362668402,1748391046878,-430.0,0.00019178,2]
[362668404,1748391046888,-370.0,0.00019178,2]
[362668405,1748391046898,-430.0,0.00019178,2]
[362668406,1748391046908,-431.30415414,0.00019178,2]
[362668407,1748391046918,-430.0,0.00019178,2]
[362668408,1748391046927,-406.93414591,0.00019178,2]
[362668409,1748391046937,-430.0,0.00019178,2]
[362668410,1748391046947,-434.33843952,0.00019178,2]
[362668411,1748391046957,-430.0,0.00019178,2]
[362668412,1748391046966,-430.0,0.00019178,2]
[362668413,1748391046976,-430.0,0.00019178,2]
[362668414,1748391046987,-430.0,0.00019178,2]
[362668415,1748391046996,-430.0,0.00019178,2]
[362668416,1748391047006,-430.0,0.00019178,2]
[362668417,1748391047017,-400.0,0.00019178,2]
[362668418,1748391047029,-430.0,0.00019178,2]
[362668419,1748391047039,-430.0,0.00019178,2]
[362668420,1748391047048,-400.0,0.00019178,2]
[362668421,1748391047060,-430.0,0.00019178,2]
[362668423,1748391047070,-530.0,0.00019178,2]
[362668425,1748391047080,-430.0,0.00019178,2]
[362668426,1748391047089,-430.0,0.00019178,2]
[362668428,1748391047100,-430.0,0.00019178,2]
[362668431,1748391047112,-370.0,0.00019178,2]
[362668432,1748391047122,-430.0,0.00019178,2]
[362668434,1748391047132,-400.0,0.00019178,2]
[362668436,1748391047142,-430.0,0.00019178,2]
[362668438,1748391047152,-183.62460969,0.00019178,2]
[362668440,1748391047161,-430.0,0.00019178,2]
[362668443,1748391047171,-352.86219687,0.00019178,2]
[362668444,1748391047181,-450.0,0.00019178,2]
[362668446,1748391047191,-430.0,0.00019178,2]
[362668448,1748391047200,-500.0,0.00019178,2]
[362668451,1748391047209,-500.0,0.00019178,2]
[362668453,1748391047219,-500.0,0.00019178,2]
[362668455,1748391047228,-500.0,0.00019178,2]
[362668456,1748391047237,-500.0,0.00019178,2]
[362668458,1748391047247,-500.0,0.00019178,2]
[362668460,1748391047256,-500.0,0.00019178,2]
[362668462,1748391047266,-500.0,0.00019178,2]
[362668464,1748391047275,-500.0,0.00019178,2]
[362668466,1748391047284,-430.0,0.00019178,2]
[362668469,1748391047294,-560.41238734,0.00019178,2]
[362668471,1748391047304,-430.0,0.00019178,2]
[362668472,1748391047313,-430.0,0.00019178,2]
[362668474,1748391047323,-400.0,0.00019178,2]
[362668476,1748391047332,-400.0,0.00019178,2]
[362668478,1748391047341,-400.0,0.00019178,2]
[362668480,1748391047350,-400.0,0.00019178,2]
[362668482,1748391047359,-430.0,0.00019178,2]
[362668484,1748391047369,-430.0,0.00019178,2]
[362668486,1748391047379,-452.2361337,0.00019178,2]
[362668488,1748391047388,-400.0,0.00019178,2]
[362668490,1748391047398,-450.0,0.00019178,2]
[362668492,1748391047408,-400.0,0.00019178,2]
[362668494,1748391047417,-430.0,0.00019178,2]
[362668496,1748391047427,-450.0,0.00019178,2]
[362668498,1748391047436,-470.0,0.00019178,2]
[362668500,1748391047446,-430.0,0.00019178,2]
[362668502,1748391047456,-450.0,0.00019178,2]
[362668504,1748391047465,-430.0,0.00019178,2]
[362668506,1748391047475,-430.0,0.00019178,2]
[362668508,1748391047484,-404.9637119,0.00019178,2]
[362668510,1748391047493,-430.0,0.00019178,2]
[362668512,1748391047503,-430.0,0.00019178,2]
[362668514,1748391047512,-430.0,0.00019178,2]
[362668516,1748391047521,-400.0,0.00019178,2]
[362668518,1748391047531,-450.0,0.00019178,2]
[362668520,1748391047540,-430.0,0.00019178,2]
[362668522,1748391047550,-457.46846965,0.00019178,2]
[362668524,1748391047559,-457.23559098,0.00019178,2]
[362668526,1748391047569,-550.74012256,0.00019178,2]
[362668528,1748391047578,-400.0,0.00019178,2]
[362668530,1748391047587,-430.0,0.00019178,2]
[362668532,1748391047597,-400.0,0.00019178,2]
[362668534,1748391047606,-400.0,0.00019178,2]
[362668536,1748391047615,-430.0,0.00019178,2]
[362668538,1748391047625,-500.0,0.00019178,2]
[362668540,1748391047634,-430.0,0.00019178,2]
[362668542,1748391047644,-430.0,0.00019178,2]
[362668544,1748391047653,-400.0,0.00019178,2]
[362668546,1748391047663,-430.0,0.00019178,2]
[362668548,1748391047674,-430.0,0.00019178,2]
[362668550,1748391047684,-430.0,0.00019178,2]
[362668552,1748391047693,-303.01,0.00019178,2]
[362668554,1748391047703,-430.0,0.00019178,2]
[362668556,1748391047713,-281.56377815,0.00019178,2]
[362668558,1748391047723,-400.0,0.00019178,2]
[362668560,1748391047732,-430.0,0.00019178,2]
[362668562,1748391047742,-430.0,0.00019178,2]
[362668564,1748391047752,-430.0,0.00019178,2]
[362668566,1748391047762,-430.0,0.00019178,2]
[362668568,1748391047772,-430.0,0.00019178,2]
[362668570,1748391047782,-430.0,0.00019178,2]
[362668572,1748391047792,-430.0,0.00019178,2]
[362668574,1748391047801,-430.0,0.00019178,2]
[362668576,1748391047811,-430.0,0.00019178,2]
[362668578,1748391047821,-430.0,0.00019178,2]
[362668580,1748391047831,-430.0,0.00019178,2]
[362668582,1748391047841,-430.0,0.00019178,2]
[362668584,1748391047850,-579.38599196,0.00019178,2]
[362668586,1748391047860,-156.73273635,0.00019178,2]
[362668588,1748391047870,-430.0,0.00019178,2]
[362668590,1748391047881,-430.0,0.00019178,2]
[362668592,1748391047890,-430.0,0.00019178,2]
[362668594,1748391047900,-553.46,0.00019178,2]
[362668596,1748391047909,-430.0,0.00019178,2]
[362668598,1748391047919,-430.0,0.00019178,2]
[362668600,1748391047928,-430.0,0.00019178,2]
[362668602,1748391047937,-430.0,0.00019178,2]
[362668604,1748391047947,-430.0,0.00019178,2]
[362668606,1748391047956,-268.62363897,0.00019178,2]
[362668608,1748391047966,-430.0,0.00019178,2]
[362668610,1748391047975,-430.0,0.00019178,2]
[362668612,1748391047985,-430.0,0.00019178,2]
[362668614,1748391047995,-430.0,0.00019178,2]
[362668616,1748391048005,-430.0,0.00019178,2]
[362668618,1748391048016,-165.80184782,0.00019178,2]
[362668620,1748391048027,-430.0,0.00019178,2]
[362668622,1748391048036,-430.0,0.00019178,2]
[362668624,1748391048045,-450.0,0.00019178,2]
[362668626,1748391048055,-430.0,0.00019178,2]
[362668628,1748391048065,-430.0,0.00019178,2]
[362668629,1748391048075,-430.0,0.00019178,2]
[362668632,1748391048085,-430.0,0.00019178,2]
[362668633,1748391048097,-430.0,0.00019178,2]
[362668635,1748391048107,-430.0,0.00019178,2]
[362668637,1748391048117,-400.0,0.00019178,2]
[362668639,1748391048127,-430.0,0.00019178,2]
[362668641,1748391048137,-400.0,0.00019178,2]
[362668643,1748391048147,-354.95157572,0.00019178,2]
[362668645,1748391048157,-430.0,0.00019178,2]
[362668647,1748391048166,-430.0,0.00019178,2]
[362668650,1748391048176,-430.0,0.00019178,2]
[362668652,1748391048186,-430.0,0.00019178,2]
[362668653,1748391048196,-450.0,0.00019178,2]
[362668655,1748391048206,-430.0,0.00019178,2]
[362668657,1748391048216,-430.0,0.00019178,2]
[362668659,1748391048225,-350.0,0.00019178,2]
[362668662,1748391048235,-400.69329161,0.00019178,2]
[362668663,1748391048244,-550.0,0.00019178,2]
[362668665,1748391048254,-430.0,0.00019178,2]
[362668667,1748391048264,-400.0,0.00019178,2]
[362668669,1748391048273,-430.0,0.00019178,2]
[362668671,1748391048283,-350.0,0.00019178,2]
[362668673,1748391048292,-400.0,0.00019178,2]
[362668675,1748391048302,-350.0,0.00019178,2]
[362668677,1748391048311,-218.92859371,0.00019178,2]
[362668679,1748391048320,-400.0,0.00019178,2]
[362668681,1748391048330,-400.86643722,0.00019178,2]
[362668683,1748391048339,-430.0,0.00019178,2]
[362668685,1748391048348,-430.0,0.00019178,2]
[362668687,1748391048358,-430.0,0.00019178,2]
[362668689,1748391048367,-430.0,0.00019178,2]
[362668691,1748391048377,-430.0,0.00019178,2]
[362668693,1748391048386,-430.0,0.00019178,2]
[362668695,1748391048396,-430.0,0.00019178,2]
[362668697,1748391048406,-430.0,0.00019178,2]
[362668699,1748391048415,-430.0,0.00019178,2]
[362668712,1748391048538,-451.81794322,0.00019178,2]
[362668714,1748391048548,-540.17026897,0.00019178,2]
[362668716,1748391048558,-430.0,0.00019178,2]
[362668718,1748391048568,-433.67973921,0.00019178,2]
[362668720,1748391048578,-430.0,0.00019178,2]
[362668722,1748391048588,-327.15267801,0.00019178,2]
[362668724,1748391048597,-430.0,0.00019178,2]
[362668726,1748391048606,-430.0,0.00019178,2]
[362668728,1748391048617,-430.0,0.00019178,2]
[362668730,1748391048627,-517.88,0.00019178,2]
[362668732,1748391048637,-430.0,0.00019178,2]
[362668734,1748391048647,-430.0,0.00019178,2]
[362668736,1748391048657,-430.0,0.00019178,2]
[362668738,1748391048667,-430.0,0.00019178,2]
[362668740,1748391048676,-430.0,0.00019178,2]
[362668741,1748391048685,-430.0,0.00019178,2]
[362668744,1748391048695,-430.0,0.00019178,2]
[362668745,1748391048705,-430.0,0.00019178,2]
[362668747,1748391048715,-430.0,0.00019178,2]
[362668749,1748391048725,-430.0,0.00019178,2]
[362668752,1748391048735,-430.0,0.00019178,2]
[362668753,1748391048745,-430.0,0.00019178,2]
[362668756,1748391048755,-489.04,0.00019178,2]
[362668757,1748391048765,-430.0,0.00019178,2]
[362668759,1748391048776,-430.0,0.00019178,2]
[362668761,1748391048786,-430.0,0.00019178,2]
[362668763,1748391048796,-430.0,0.00019178,2]
[362668765,1748391048806,-430.0,0.00019178,2]
[362668767,1748391048815,-430.0,0.00019178,2]
[362668769,1748391048826,-430.0,0.00019178,2]
[362668771,1748391048836,-458.8731213,0.00019178,2]
[362668773,1748391048846,-430.0,0.00019178,2]
[362668775,1748391048856,-430.0,0.00019178,2]
[362668777,1748391048866,-430.0,0.00019178,2]
[362668779,1748391048876,-430.0,0.00019178,2]
[362668781,1748391048886,-430.0,0.00019178,2]
[362668783,1748391048898,-430.0,0.00019178,2]
[362668785,1748391048908,-430.0,0.00019178,2]
[362668787,1748391048920,-430.0,0.00019178,2]
[362668789,1748391048931,-430.0,0.00019178,2]
[362668791,1748391048941,-430.0,0.00019178,2]
[362668793,1748391048953,-264.47280464,0.00019178,2]
[362668795,1748391048962,-430.0,0.00019178,2]
[362668797,1748391048973,-430.0,0.00019178,2]
[362668799,1748391048983,-430.0,0.00019178,2]
[362668801,1748391048993,-430.0,0.00019178,2]
[362668803,1748391049003,-430.0,0.00019178,2]
[362668805,1748391049014,-170.6,0.00019178,2]
[362668807,1748391049027,-430.0,0.00019178,2]
[362668809,1748391049037,-430.0,0.00019178,2]
[362668811,1748391049047,-430.0,0.00019178,2]
[362668813,1748391049057,-230.29724604,0.00019178,2]
[362668815,1748391049066,-430.0,0.00019178,2]
[362668817,1748391049076,-430.0,0.00019178,2]
[362668819,1748391049086,-430.0,0.00019178,2]
[362668821,1748391049095,-430.0,0.00019178,2]
[362668823,1748391049106,-264.70988329,0.00019178,2]
[362668825,1748391049116,-430.0,0.00019178,2]
[362668827,1748391049126,-430.0,0.00019178,2]
[362668829,1748391049136,-430.0,0.00019178,2]
[362668831,1748391049146,-430.0,0.00019178,2]
[362668833,1748391049157,-430.0,0.00019178,2]
[362668835,1748391049167,-430.0,0.00019178,2]
[362668837,1748391049177,-430.0,0.00019178,2]
[362668839,1748391049188,-430.0,0.00019178,2]
[362668841,1748391049198,-430.0,0.00019178,2]
[362668843,1748391049208,-430.0,0.00019178,2]
[362668845,1748391049218,-430.0,0.00019178,2]
[362668847,1748391049228,-430.0,0.00019178,2]
[362668849,1748391049238,-430.0,0.00019178,2]
[362668851,1748391049248,-400.0,0.00019178,2]
[362668853,1748391049258,-430.0,0.00019178,2]
[362668855,1748391049267,-430.0,0.00019178,2]
[362668857,1748391049279,-430.0,0.00019178,2]
[362668859,1748391049289,-430.0,0.00019178,2]
[362668861,1748391049299,-399.60378205,0.00019178,2]
[362668863,1748391049309,-430.0,0.00019178,2]
[362668865,1748391049319,-430.0,0.00019178,2]
[362668867,1748391049329,-430.0,0.00019178,2]
[362668869,1748391049339,-430.0,0.00019178,2]
[362668871,1748391049348,-430.0,0.00019178,2]
[362668873,1748391049358,-430.0,0.00019178,2]
[362668875,1748391049368,-430.0,0.00019178,2]
[362668877,1748391049379,-430.0,0.00019178,2]
[362668879,1748391049388,-430.0,0.00019178,2]
[362668881,1748391049398,-430.0,0.00019178,2]
[362668883,1748391049407,-430.0,0.00019178,2]
[362668885,1748391049417,-500.0,0.00019178,2]
[362668887,1748391049426,-500.0,0.00019178,2]
[362668889,1748391049436,-500.0,0.00019178,2]
[362668891,1748391049445,-500.0,0.00019178,2]
[362668893,1748391049455,-500.0,0.00019178,2]
[362668895,1748391049464,-500.0,0.00019178,2]
[362668897,1748391049474,-500.0,0.00019178,2]
[362668899,1748391049483,-500.0,0.00019178,2]
[362668901,1748391049493,-500.0,0.00019178,2]
[362668903,1748391049503,-448.90245024,0.00019178,2]
[362668905,1748391049513,-430.0,0.00019178,2]
[362668906,1748391049523,-430.0,0.00019178,2]
[362668907,1748391049532,-517.42,0.00019178,2]
[362668908,1748391049542,-430.0,0.00019178,2]
[362668909,1748391049551,-371.9006494,0.00019178,2]
[362668910,1748391049560,-439.35,0.00019178,2]
[362668911,1748391049569,-477.16763785,0.00019178,2]
[362668913,1748391049578,-463.5968159,0.00019178,2]
[362668915,1748391049588,-278.77496496,0.00019352,2]
[362668917,1748391049598,-500.0,0.00019451,2]
[362668919,1748391049608,-500.0,0.00019451,2]
[362668921,1748391049617,-187.72,0.00019451,2]
[362668923,1748391049628,-430.0,0.00019452,2]
[362668925,1748391049637,-430.0,0.00019452,2]
[362668927,1748391049647,-430.0,0.00019452,2]
[362668929,1748391049656,-430.0,0.00019452,2]
[362668931,1748391049666,-430.0,0.00019452,2]
[362668933,1748391049676,-456.57794003,0.00019452,2]
[362668935,1748391049686,-404.69954197,0.00019452,2]
[362668937,1748391049695,-430.0,0.00019452,2]
[362668939,1748391049705,-401.47472214,0.00019452,2]
[362668941,1748391049715,-430.0,0.00019452,2]
[362668943,1748391049724,-484.68204232,0.00019452,2]
[362668945,1748391049733,-430.0,0.00019452,2]
[362668947,1748391049743,-181.61311699,0.00019452,2]
[362668949,1748391049753,-470.0,0.00019452,2]
[362668951,1748391049763,-430.0,0.00019452,2]
[362668953,1748391049772,-430.0,0.00019452,2]
[362668955,1748391049782,-430.0,0.00019452,2]
[362668957,1748391049791,-430.0,0.00019452,2]
[362668959,1748391049801,-327.7240025,0.00019452,2]
[362668961,1748391049810,-370.0,0.00019452,2]
[362668963,1748391049820,-370.0,0.00019452,2]
[362668965,1748391049830,-430.0,0.00019452,2]
[362668967,1748391049839,-274.23529294,0.00019452,2]
[362668969,1748391049848,-430.0,0.00019452,2]
[362668971,1748391049857,-430.0,0.00019452,2]
[362668973,1748391049867,-430.0,0.00019452,2]
[362668975,1748391049876,-430.0,0.00019452,2]
[362668977,1748391049886,-421.65785001,0.00019452,2]
[362668979,1748391049895,-430.0,0.00019452,2]
[362668981,1748391049905,-430.0,0.00019452,2]
[362668983,1748391049914,-433.72799631,0.00019452,2]
[362668985,1748391049923,-430.0,0.00019452,2]
[362668987,1748391049933,-430.0,0.00019452,2]
[362668989,1748391049943,-436.97806649,0.00019452,2]
[362668990,1748391049952,-430.0,0.00019452,2]
[362668992,1748391049961,-500.0,0.00019452,2]
[362668994,1748391049971,-430.0,0.00019452,2]
[362668996,1748391049981,-430.0,0.00019452,2]
[362668998,1748391049990,-470.0,0.00019452,2]
[362669001,1748391050000,-430.0,0.00019452,2]
[362669002,1748391050009,-430.0,0.00019452,2]
[362669005,1748391050019,-555.52924367,0.00019452,2]
[362669007,1748391050028,-430.0,0.00019452,2]
[362669009,1748391050040,-444.46000036,0.00019452,2]
[362669011,1748391050049,-430.0,0.00019452,2]
[362669012,1748391050058,-430.0,0.00019452,2]
[362669015,1748391050067,-430.0,0.00019452,2]
[362669017,1748391050078,-430.0,0.00019452,2]
[362669019,1748391050087,-430.0,0.00019452,2]
[362669020,1748391050096,-470.0,0.00019452,2]
[362669022,1748391050106,-430.0,0.00019452,2]
[362669024,1748391050116,-215.1171395,0.00019452,2]
[362669026,1748391050125,-430.0,0.00019452,2]